{"text_format":"2","workbook":"xlsx","n_sheets":8,"sheets":["Инструкция","Заголовок","Отпуск электроэнерг. сет. орг.","Консультации","Проверка","REESTR_ORG","REESTR","TEHSHEET"],"not_rendered":{"charts":0,"images":3,"macros":1,"external_links":0,"defined_names":13,"comments":0,"pivot_tables":0},"unopened":[],"bounds":{"document_bytes":16777216,"sheet_cells":100000,"run_cost":"one","rows_first":2000,"rows_last":500,"rows_between":2000,"halvings":0,"cell_chars":16384,"cell_head_chars":4096},"cells_cut":0,"cells_raw":0,"read":"whole","date_system":"1900"}

{"sheet":"Инструкция","index":0,"n_rows":21,"n_cols":3,"rows_kept":21,"cut":false,"hidden":false,"merged":[[1,2,1,4]]}
[]
[null,"Инструкция по заполнению шаблона",{"$f":"\"Версия \" & GetVersion()","v":"Версия 6.1.1"}]
[null,"1. После ознакомления с инструкцией для того чтобы начать заполнение формы, необходимо нажать кнопку \"Приступить к заполнению\". При нажатии данной кнопки появляется форма выбора региона. После выбора региона отображается лист \"Заголовок\"."]
[null,"2. Лист \"Заголовок\" должен быть заполнен обязательно. \nЦвета ячеек:\n - ГОЛУБОЙ – ячейки ОБЯЗАТЕЛЬНЫЕ для заполнения;\n - ЖЕЛТЫЙ – ячейки,  ПРЕДНАЗНАЧЕННЫЕ для заполнения;\n - ЗЕЛЕНЫЙ – ячейки с ФОРМУЛАМИ и КОНСТАНТАМИ."]
[null,"3. Если отчитывающаяся организация не имеет филиалов, то в графе \"Наименование организации\" должно стоять ее название, а в ячейке G20 нужно выбрать \"Нет\". Если же шаблон заполняется от имени филиала (подразделения) организации, то в графе \"Наименование организации\" должно стоять наименование головной организации, в ячейке G20 нужно выбрать \"Да\", в поле \"Название филиала\" - название данного подразделения. Поля \"ИНН\", \"Регион\" и \"Почтовый адрес\" также заполняются данными, относящимися к филиалу."]
[null,"4. В графе \"Отчетный период\" необходимо выбрать месяц и год из выпадающих списков. Для заполнения годовой формы отчетности необходимо выбрать из списка месяцев на листе \"Заголовок\" значение \"Год\"."]
[null,"5. Расчетный лист станет доступен для заполнения по нажатию кнопки \"Показать расчетный лист\". Внимание: кнопка сработает только при заполненном листе \"Заголовок\"."]
[null,"6. Все ячейки расчетного листа должны быть заполнены. Если какое-либо значение не задано, оно считается равным нулю."]
[null,"7. Для корректной работы шаблона макросы дожны включены, для этого необходимо в меню \"Сервис\" -> \"Макрос\" -> \"Безопасность\" выбрать низкий уровень безопасности. После этого шаблон нужно закрыть, а затем открыть его заново."]
[null,"8. Если в ходе работы с шаблоном возникнут вопросы, воспользуйтесь информацией на листе \"Консультации\"."]
[null,"СВЕДЕНИЯ ОБ ОТПУСКЕ (ПЕРЕДАЧЕ) ЭЛЕКТРОЭНЕРГИИ ПОТРЕБИТЕЛЯМ РАСПРЕДЕЛИТЕЛЬНЫМИ СЕТЕВЫМИ ОРГАНИЗАЦИЯМИ"]
[null,"1. При заполнении отчетных форм принимается:\nВН (220 кВ, 110 кВ)-напряжение в сети 220 кВ, 110 кВ и выше;\nСН 1 – напряжение в сети 35 кВ и выше;\nСН 2 – напряжение в сети 10-6 кВ и выше;\nНН – напряжение в сети 0,4 кВ и выше"]
[null,"2. В строке 10 отражается объем поступившей электроэнергии в сеть отчитывающейся организации по уровням напряжения. Строка 10 = сумма строк (20+30)."]
[null,"3. В строке 20 отражаются потери в сетях по уровням напряжения. Строка 20 = сумма строк (50 +130 + 200 + 260 + 310)."]
[null,"4. В строке 30 отражается отпуск (передача) электроэнергии со всех уровней напряжения. Строка 30 = сумма строк (60 + 140 + 210 + 270 + 320)."]
[null,"5. Строки 70-110, 150-180, 220-240, 280, 290 заполняются по уровням напряжения ВН, СН 1, СН 2, НН, отражают объемы электрической энергии, переданные в сеть по каждому из уровней напряжения для дальнейшей передачи по сетям. Графа 6 для вышеуказанных строк "]
[null,"6. В графе 3 приводятся сведения об отпуске электрической энергии за отчетный период. Заполняются значения, полученные на основании показателей технических средств измерения."]
[null,"7. В графе 4 приводятся сведения о сумме всей заявленной потребителями мощности только в случае, если регулирующим органом осуществляется регулирование распределительных сетевых организаций по заявленной мощности."]
[null,"8. В графе 5 приводятся сведения о сумме всех присоединенных мощностей потребителей, отнесенных к соответствующему уровню напряжения. "]
[null,"9. В графе 6 приводятся сведения о товарной выручке, определенной на основании данных об объемах фактически оказанных услуг по тарифам, утвержденным в установленном порядке."]
[null,"10. Строки 40-110 распределительной сетевой компанией не заполняются (заполняются только организацией ФСК ЕЭС России)."]

{"sheet":"Заголовок","index":1,"n_rows":36,"n_cols":15,"rows_kept":36,"cut":false,"hidden":false,"merged":[[17,9,17,11],[6,0,6,8],[6,9,6,11],[6,13,6,16],[7,0,16,8],[7,9,16,11],[9,13,12,16],[14,14,14,15],[0,5,0,6],[17,0,17,8],[21,1,21,3],[21,4,21,5],[22,1,22,6],[20,1,20,3],[20,5,20,6],[35,3,35,6],[31,0,31,1],[32,0,33,1],[34,0,34,2],[35,0,35,2],[32,3,32,6],[33,3,33,6],[34,3,34,6],[26,0,26,6],[23,1,23,6],[24,1,24,2],[24,4,24,5],[31,3,31,6]]}
[{"$f":"IF(B23=\"\",B21,B23)","v":"ООО \"Брянская региональная электросеетвая компания\""},{"$nulls":4},"Форма № 46-ЭЭ (передача)"]
[{"$f":"region_name","v":"Брянская область"}]
[{"$nulls":11},{"$f":"version","v":"Версия 6.1.1"}]
[{"$f":"\"СВЕДЕНИЯ ОБ ОТПУСКЕ (ПЕРЕДАЧЕ) ЭЛЕКТРОЭНЕРГИИ ПОТРЕБИТЕЛЯМ РАСПРЕДЕЛИТЕЛЬНЫМИ СЕТЕВЫМИ ОРГАНИЗАЦИЯМИ в \" & B25 & \", \" & E25 & \" г. \"","v":"СВЕДЕНИЯ ОБ ОТПУСКЕ (ПЕРЕДАЧЕ) ЭЛЕКТРОЭНЕРГИИ ПОТРЕБИТЕЛЯМ РАСПРЕДЕЛИТЕЛЬНЫМИ СЕТЕВЫМИ ОРГАНИЗАЦИЯМИ в Сентябрь, 2014 г. "}]
[55]
[]
["Представляют",{"$nulls":8},"Сроки представления",null,null,null,"Форма № 46-ЭЭ (передача)"]
["юридические лица – сетевые организации, осуществляющие оказание услуг по передаче и распределению электрической энергии (мощности); ОАО «Федеральная сетевая компания ЕЭС России» и ее обособленные подразделения:\n- ФСТ России (организация, уполномоченная ФСТ России);\n- органам исполнительной власти субъектов Российской Федерации в области \n  государственного регулирования тарифов;\n- территориальному органу Росстата в субъекте Российской Федерации \n  по установленному  им адресу",{"$nulls":8},"20 числа месяца, следующего за отчетным,\nза год – 10 февраля\n"]
[]
[{"$nulls":13},"Утверждена \nпостановлением Росстата \nот  23.03.2007 № 29\n"]
[]
[]
[]
[]
[{"$nulls":14},"Месячная, годовая"]
[]
[]
["ФСТ России:\n- Росстату по согласованной программе\n",{"$nulls":8},"по согласованным срокам"]
[]
[]
["Наименование организации","ООО \"Брянская региональная электросеетвая компания\"",null,null,"ИНН","3257012934"]
["Регион","Брянская область",null,null,"Отчётность предоставляет филиал? (если да - укажите наименование филиала)",null,"Нет"]
["Название филиала"]
["Почтовый адрес","241023, г.Брянск, ул. Бежицкая, 54",{"$nulls":5},"L1","Почтовый адрес"]
["Отчетный период","Сентябрь",null,"- месяц",2014,null,"- год"]
[]
["Код"]
["отчитывающейся организации по ОКПО","вида деятельности по ОКВД","КПП","территории по ОКАТО","министерства (ведомства), органа управления по ОКОГУ","организационно-правовой формы по ОКОПФ","формы собственности по ОКФС"]
[1,2,3,4,5,6,7]
["14344683","40.10.2","325701001","15401375000","4210014","12165","16"]
["L7","L8","L9","L10","L11","L12","L13"]
["Руководитель организации",null,"Ф.И.О.:","Соловьев Дмитрий Владимирович",null,null,null,"L2","Руководитель организации. ФИО"]
["Должностное лицо, ответственное за составление формы",null,"Ф.И.О.:","Соловьев Дмитрий Владимирович",null,null,null,"L3","Должностное лицо, ответственное за составление формы. ФИО"]
[null,null,"Должность:","Директор",null,null,null,"L4","Должностное лицо, ответственное за составление формы. Должность"]
["Номер контактного телефона:",null,null,"89158016495",null,null,null,"L5","Номер контактного телефона"]
["Дата составления документа:",null,null,{"$f":"TODAY()","v":"2015-02-09"},null,null,null,"L6","Дата составления документа"]

{"sheet":"Отпуск электроэнерг. сет. орг.","index":2,"n_rows":61,"n_cols":11,"rows_kept":61,"cut":false,"hidden":false,"merged":[[3,2,3,7],[47,2,47,5],[47,7,47,8],[52,7,52,8],[54,2,54,3],[54,5,54,6],[48,2,48,5],[48,7,48,8],[51,2,51,3],[51,4,51,6],[51,7,51,8],[52,2,52,3],[52,4,52,6],[60,2,62,7],[64,2,89,7],[6,3,6,7],[55,2,55,3],[55,5,55,6]]}
[{"$f":"Заголовок!B21","v":"ООО \"Брянская региональная электросеетвая компания\""},{"$f":"Заголовок!B25","v":"Сентябрь"},{"$f":"Заголовок!C25","v":0},null,"Отпуск ЭЭ за отчетный месяц (год), тыс кВт ч","Заявленная мощность за отчетный месяц (год), МВт","Присоединенная мощность за отчетный месяц (год), МВт","Товарная продукция за отчетный месяц (год), тыс руб"]
[{"$f":"Заголовок!F21","v":"3257012934"},null,null,null,"L1","L2","L3","L4"]
[{"$f":"Заголовок!B22","v":"Брянская область"}]
[{"$f":"Заголовок!B25","v":"Сентябрь"},null,"СВЕДЕНИЯ ОБ ОТПУСКЕ (ПЕРЕДАЧЕ) ЭЛЕКТРОЭНЕРГИИ ПОТРЕБИТЕЛЯМ РАСПРЕДЕЛИТЕЛЬНЫМИ СЕТЕВЫМИ ОРГАНИЗАЦИЯМИ"]
[{"$f":"Заголовок!E25","v":2014},{"$nulls":8},{"$f":"version","v":"Версия 6.1.1"}]
[]
[null,null,null,"Коды по ОКЕИ: 1000 киловатт-часов – 246, мегаватт – 215, тысяча рублей - 384"]
[null,null,"Наименование показателя","Код строки","Отпуск ЭЭ за отчетный месяц (год), тыс кВт ч","Заявленная мощность за отчетный месяц (год), МВт","Присоединенная мощность за отчетный месяц (год), МВт","Товарная продукция за отчетный месяц (год), тыс руб"]
[]
[null,null,1,2,3,4,5,6]
["L1",null,"Поступление электроэнергии в сеть - всего",10,{"$f":"SUM(E12,E13)","v":20.7},{"$f":"SUM(F12,F13)","v":0},{"$f":"SUM(G12,G13)","v":0},{"$f":"SUM(H12,H13)","v":0},"Поступление электроэнергии","Всего"]
["L2",null,"Потери электроэнергии - всего",20,{"$f":"SUM(E15,E23,E30,E36,E41)","v":0.54},{"$f":"SUM(F15,F23,F30,F36,F41)","v":0},0,0,"Потери электроэнергии","Всего"]
["L3",null,"Отпуск (передача) электроэнергии потребителям сетевыми предприятиями - всего",30,{"$f":"SUM(E16,E24,E31,E37,E42)","v":20.16},0,0,0,"Отпуск электроэнергии","Всего"]
["L4",null,"Поступление электроэнергии в сеть ЕНЭС",40,0,0,0,0,"Поступление электроэнергии","ЕНЭС"]
["L5",null,"Потери электроэнергии ",50,0,0,0,0,"Потери электроэнергии","ЕНЭС"]
["L6",null,"Отпуск (передача) электроэнергии  потребителям ",60,0,0,0,0,"Отпуск электроэнергии","ЕНЭС"]
["L7",null,"Трансформировано из сети ЕНЭС в:",70,0,0,0,"Х","Трансформировано","ЕНЭС"]
["L8",null,"  - ВН ",80,0,0,0,"Х","Трансформировано","ЕНЭС","ВН"]
["L9",null,"  - СН1 ",90,0,0,0,"Х","Трансформировано","ЕНЭС","СН1"]
["L10",null,"  - СН2 ",100,0,0,0,"Х","Трансформировано","ЕНЭС","СН2"]
["L11",null,"  - НН ",110,0,0,0,"Х","Трансформировано","ЕНЭС","НН"]
["L12",null,"Поступление электроэнергии в сеть ВН 110 кВ",120,20.7,0,0,0,"Поступление электроэнергии","ВН"]
["L13",null,"Потери электроэнергии ",130,0.54,0,0,0,"Потери электроэнергии","ВН"]
["L14",null,"Отпуск (передача) электроэнергии  потребителям ",140,20.16,0,0,0,"Отпуск электроэнергии","ВН"]
["L15",null,"Трансформировано из 110 кВ в:",150,0,0,0,"Х","Трансформировано","ВН"]
["L16",null,"  - СН1 ",160,0,0,0,"Х","Трансформировано","ВН","СН1"]
["L17",null,"  - СН2 ",170,0,0,0,"Х","Трансформировано","ВН","СН2"]
["L18",null,"  - НН ",180,0,0,0,"Х","Трансформировано","ВН","НН"]
["L19",null,"Поступление электроэнергии в сеть СН1 ",190,0,0,0,0,"Поступление электроэнергии","СН1"]
["L20",null,"Потери электроэнергии ",200,0,0,0,0,"Потери электроэнергии","СН1"]
["L21",null,"Отпуск (передача) электроэнергии  потребителям ",210,0,0,0,0,"Отпуск электроэнергии","СН1"]
["L22",null,"Трансформировано из 35 кВ в:",220,0,0,0,"Х","Трансформировано","СН1"]
["L23",null,"- СН2",230,0,0,0,"Х","Трансформировано","СН1","СН2"]
["L24",null,"- НН ",240,0,0,0,"Х","Трансформировано","СН1","НН"]
["L25",null,"Поступление электроэнергии в сеть СН2 ",250,0,0,0,0,"Поступление электроэнергии","СН2"]
["L26",null,"Потери электроэнергии ",260,0,0,0,0,"Потери электроэнергии","СН2"]
["L27",null,"Отпуск (передача) электроэнергии  потребителям ",270,0,0,0,0,"Отпуск электроэнергии","СН2"]
["L28",null,"Трансформировано из 10-6 кВ в:",280,0,0,0,"Х","Трансформировано","СН2"]
["L29",null,"  - НН ",290,0,0,0,"Х","Трансформировано","СН2","НН"]
["L30",null,"Поступление электроэнергии в сеть НН ",300,0,0,0,0,"Поступление электроэнергии","НН"]
["L31",null,"Потери электроэнергии ",310,0,0,0,0,"Потери электроэнергии","НН"]
["L32",null,"Отпуск (передача) электроэнергии  потребителям ",320,0,0,0,0,"Отпуск электроэнергии","НН"]
[]
[]
[]
[]
[]
[null,"Руководитель организации","Соловьев Дмитрий Владимирович"]
[null,null,"(Ф.И.О.)",{"$nulls":4},"(подпись)"]
[]
[]
[null,"Должностное лицо,","Директор",null,"Соловьев Дмитрий Владимирович"]
[null," ответственное за","(Должность)",null,"(Ф.И.О.)",null,null,"(подпись)"]
[null,"составление формы"]
[null,null,89158016495,null,null,"«04» февраля 2015 год"]
[null,null,"(номер контактного телефона)",null,null,"(дата составления документа)"]
[]
[]
[]
[]
[null,null,"Здесь Вы можете оставить свои комментарии."]

{"sheet":"Консультации","index":3,"n_rows":29,"n_cols":7,"rows_kept":29,"cut":false,"hidden":false,"merged":[[29,2,29,4],[13,2,13,4],[3,2,3,4],[9,2,9,4],[10,2,10,4],[11,2,11,4],[27,2,27,4],[28,2,28,4]]}
[]
[]
[{"$nulls":6},{"$f":"version","v":"Версия 6.1.1"}]
[null,null,"Порядок обращения за консультациями по подключению к ЕИАС ФСТ России и по вопросам формирования и отправки формы 46."]
[]
[null,null,"Вопросы по подключению к ЕИАС ФСТ России"]
[null,null,"1. Порядок подключения представлен на Интернет-сайте www.fstrf.ru/eias/connect"]
[]
[null,null,"Вопросы по заполнению и отправке шаблонов"]
[null,null,"1. Изучите инструкцию шаблона. Перед тем, как адресовать обращение службе технической поддержки ЕИАС, пожалуйста, убедитесь, что полностью ознакомились с инструкцией, содержащейся в  шаблоне на странице “Инструкция”."]
[null,null,"2.  Изучите материалы специализированного раздела на сайте технической поддержки по адресу: http://eias.ru/46  "]
[null,null,"3.  Сформулируйте вопрос или проблему, подготовьте ответы на следующие вопросы анкеты пользователя ЕИАС:"]
[]
[null,null,"Анкета пользователя"]
[null,null,"№ п/п","Вопрос анкеты пользователя","Пример ответа"]
[null,null,1,"ФИО","Иванов Иван Иванович"]
[null,null,2,"Наименование и организационно-правовая форма организации","МУП Ивановские теплосети"]
[null,null,3,"Регион","Ивановская область"]
[null,null,4,"Должность","старший экономист"]
[null,null,5,"Телефон для связи с кодом города","(777) 777 777"]
[null,null,6,"Адрес электронной почты для связи","Ivanov@mail.ru"]
[null,null,7," Подключен ли Ваш компьютер к ЕИАС?","Да"]
[null,null,8,"Категория обращения (консультация, техническая проблема, вопросы по подключению, предложение, пожелание, вопрос по заполнению шаблона)","консультация"]
[null,null,9,"Суть обращения","Развернутое описание вопроса"]
[]
[]
[null,null,"4.  Задайте вопрос или сообщите о проблеме одним из способов:"]
[null,null,"1)Отправьте на единый электронный адрес технической поддержки help@eias.ru "]
[null,null,"2)Заполните форму-запрос на Интернет-сайте технической поддержки http://EIAS.ru/46.htm"]

{"sheet":"Проверка","index":4,"n_rows":1,"n_cols":3,"rows_kept":1,"cut":false,"hidden":false,"merged":[]}
["Ссылка","Причина","Обязательность выполнения"]

{"sheet":"REESTR_ORG","index":5,"n_rows":78,"n_cols":7,"rows_kept":78,"cut":false,"hidden":true,"merged":[]}
[null,"ОРГАНИЗАЦИЯ","ИНН","КПП","ВИД ДЕЯТЕЛЬНОСТИ","РЕГИОН","РЕГИОН"]
[1,"ЗАО \"УК Брянский машиностороительный завод\"","3232035432","323201001","Региональная генерация","Брянская область"]
[2,"ООО \"Брянская ТСК\"","3254008270","325701001","Региональная генерация","Брянская область"]
[3,"филиал ОАО \"Квадра\" - \"Западная генерация\"","6829012680","325402001","Региональная генерация","Брянская область"]
[4,"ОАО \"Брянскэнергосбыт\"","3250056153","325001001","Сбытовая компания","Брянская область"]
[5,"ОАО \"Оборонэнергосбыт\"","7704731218","770401001","Сбытовая компания","Брянская область"]
[6,"ОАО \"Оптовая электрическая компания\"","3444103821","344401001","Сбытовая компания","Брянская область"]
[7,"ОАО \"Первая сбытовая компания\"","3123200083","312301001","Сбытовая компания","Брянская область"]
[8,"ООО \"ГРИНН Энергосбыт\"","4632116134","463201001","Сбытовая компания","Брянская область"]
[9,"ООО \"МагнитЭнерго\"","7715902899","771501001","Сбытовая компания","Брянская область"]
[10,"ООО \"Межрегиональная энергосбытовая компания\" (ООО \"Межрегионсбыт\")","7704550388","773001001","Сбытовая компания","Брянская область"]
[11,"ООО \"РТ-Энерготрейдинг\"","7729667652","772901001","Сбытовая компания","Брянская область"]
[12,"ООО \"РУСЭНЕРГОСБЫТ\"","7706284124","770601001","Сбытовая компания","Брянская область"]
[13,"ООО \"Региональная энергосбытовая компания\" (ОПП)","4633017746","463301001","Сбытовая компания","Брянская область"]
[14,"ООО \"Русэнергоресурс\"","7706288496","770601001","Сбытовая компания","Брянская область"]
[15,"ООО \"ТЭК-Энерго\"","8602173527","860201001","Сбытовая компания","Брянская область"]
[16,"ООО \"Транснефтьэнерго\"","7703552167","772301001","Сбытовая компания","Брянская область"]
[17,"ООО \"ЭнергоСервис\"","7707576602","770101001","Сбытовая компания","Брянская область"]
[18,"Филиал ОАО \"МРСК Центра - \"Брянскэнерго\"","6901067107","325002001","Сбытовая компания","Брянская область"]
[19,"ГУП \"Брянсккоммунэнерго\"","3250054100","325001001","Сетевая компания","Брянская область"]
[20,"ЗАО \"\"ПО \"ИРМАШ\"","3250525856","325701001","Сетевая компания","Брянская область"]
[21,"ЗАО \"АИП-Фосфаты\"","3233010279","323301027","Сетевая компания","Брянская область"]
[22,"ЗАО \"Брянский Автомобильный Завод\"","3255502838","325571001","Сетевая компания","Брянская область"]
[23,"ЗАО \"Брянский завод силикатного кирпича\"","3232033234","323201001","Сетевая компания","Брянская область"]
[24,"ЗАО \"Группа Кремний Эл\"","3234043140","323401001","Сетевая компания","Брянская область"]
[25,"ЗАО \"Лесхозмаш-Брянск\"","3233010695","323301001","Сетевая компания","Брянская область"]
[26,"ЗАО \"Мальцовский портландцемент\"","3202001147","320201001","Сетевая компания","Брянская область"]
[27,"ЗАО \"Метаклэй\"","3254506029","325401001","Сетевая компания","Брянская область"]
[28,"ЗАО \"Паросиловое хозяйство\"","3233006522","325701001","Сетевая компания","Брянская область"]
[29,"ЗАО \"Термотрон-Завод\"","3233010110","325701001","Сетевая компания","Брянская область"]
[30,"ЗАО \"УК Брянский машиностороительный завод\"","3232035432","323201001","Сетевая компания","Брянская область"]
[31,"МКП \"Карачевская машинно-технологическая станция\"","3254007365","325401001","Сетевая компания","Брянская область"]
[32,"МУП Жилье","3204005700","320401001","Сетевая компания","Брянская область"]
[33,"Московская дирекция по энергообеспечению Трансэнерго - филиал ОАО \"РЖД\"","7708503727","770845041","Сетевая компания","Брянская область"]
[34,"ОАО \"192 Центральный завод железнодорожной техники\"","3233502418","323301001","Сетевая компания","Брянская область"]
[35,"ОАО \"85 ремонтный завод\"","3233502320","323301001","Сетевая компания","Брянская область"]
[36,"ОАО \"Брянский арсенал\"","3201001955","323401001","Сетевая компания","Брянская область"]
[37,"ОАО \"Брянский завод металлоконструкций и технологической оснастки\"","3233005462","325701001","Сетевая компания","Брянская область"]
[38,"ОАО \"Брянский мясокомбинат\"","3235011870","323000000","Сетевая компания","Брянская область"]
[39,"ОАО \"Брянский химический завод им. 50-летия СССР\"","3255517496","325501001","Сетевая компания","Брянская область"]
[40,"ОАО \"Брянский электромеханический завод\"","3255517577","323550100","Сетевая компания","Брянская область"]
[41,"ОАО \"Глинищеворемтехпред\"","3207005057","320701001","Сетевая компания","Брянская область"]
[42,"ОАО \"Жилкомхоз\"","3243502569","324501001","Сетевая компания","Брянская область"]
[43,"ОАО \"Ирмаш\"","3233011392","323301001","Сетевая компания","Брянская область"]
[44,"ОАО \"Карачевский завод Электродеталь\"","3254511340","324501001","Сетевая компания","Брянская область"]
[45,"ОАО \"Селецкий Док\"","3230006122","323001001","Сетевая компания","Брянская область"]
[46,"ОАО \"Специализированное Управление Механизации\"","3232001673","323201001","Сетевая компания","Брянская область"]
[47,"ОАО \"Стройсервис\"","3235001907","323501001","Сетевая компания","Брянская область"]
[48,"ОАО \"ФСК ЕЭС\"","4716016979","997450001","Сетевая компания","Брянская область"]
[49,"ОАО \"Электроаппарат\"","3234021065","323401001","Сетевая компания","Брянская область"]
[50,"ООО \"Брянская региональная электросеетвая компания\"","3257012934","325701001","Сетевая компания","Брянская область"]
[51,"ООО \"Брянские электросети\"","3257017869","325701001","Сетевая компания","Брянская область"]
[52,"ООО \"Брянский завод строительных конструкций\"","3255051141","325501001","Сетевая компания","Брянская область"]
[53,"ООО \"Брянский камвольный комбинат\"","3232005220","323201001","Сетевая компания","Брянская область"]
[54,"ООО \"Брянскоблэлектро\"","3250533663","325001001","Сетевая компания","Брянская область"]
[55,"ООО \"ГПП \"Литий\"","3235001512","323501001","Сетевая компания","Брянская область"]
[56,"ООО \"Дятьковский Хрустальный завод\"","3202012727","320201001","Сетевая компания","Брянская область"]
[57,"ООО \"Коминформ\"","7731510289","770501001","Сетевая компания","Брянская область"]
[58,"ООО \"Линия\"","3254508160","325701001","Сетевая компания","Брянская область"]
[59,"ООО \"Металлсервис-Брянск\"","3255049216","325501001","Сетевая компания","Брянская область"]
[60,"ООО \"Научно-производсвенная фирма \"Электроаппарат\"","3250516210","325701001","Сетевая компания","Брянская область"]
[61,"ООО \"Нефтяная компания Русснефть-Брянск\"","3231008161","323101001","Сетевая компания","Брянская область"]
[62,"ООО \"Премьер Электро Инвест\"","3250528840","325001001","Сетевая компания","Брянская область"]
[63,"ООО \"Промышленная компания Бежицкий сталелитейный завод\"","3232039998","323201001","Сетевая компания","Брянская область"]
[64,"ООО \"Современный город\"","3257003545","325701001","Сетевая компания","Брянская область"]
[65,"ООО \"Содружество\"","3254005760","325401001","Сетевая компания","Брянская область"]
[66,"ООО \"Станкостроитель\"","3241011452","324101001","Сетевая компания","Брянская область"]
[67,"ООО \"Стройлессервис\"","3214006213","324501001","Сетевая компания","Брянская область"]
[68,"ООО \"ТранснефтьЭлектросетьСервис\"","6311049306","631101001","Сетевая компания","Брянская область"]
[69,"ООО \"УК БЗКПД\"","3233012692","323301001","Сетевая компания","Брянская область"]
[70,"ООО \"Электросеть-Сервис\"","3250531151","325701001","Сетевая компания","Брянская область"]
[71,"ООО \"Энерготранс\"","3255518323","325701001","Сетевая компания","Брянская область"]
[72,"ФГБОУ ВПО \"Брянская государственная сельскохозяйственная академия\"","3208000245","320801001","Сетевая компания","Брянская область"]
[73,"Филиал «Юго-Западный» ОАО «Оборонэнерго»","7704726225","575243001","Сетевая компания","Брянская область"]
[74,"Филиал ОАО \"МРСК Центра - \"Брянскэнерго\"","6901067107","325002001","Сетевая компания","Брянская область"]
[75,"ООО \"Брянская ТСК\"","3254008270","325701001","Станция - поставщик ЭЭ","Брянская область"]
[76,"ООО \"Клинцовская ТЭЦ\"","3241504722","324101001","Станция - поставщик ЭЭ","Брянская область"]
[77,"филиал ОАО \"Квадра\" - \"Западная генерация\"","6829012680","325402001","Станция - поставщик ЭЭ","Брянская область"]

{"sheet":"REESTR","index":6,"n_rows":1,"n_cols":6,"rows_kept":1,"cut":false,"hidden":true,"merged":[]}
[null,"ОРГАНИЗАЦИЯ","ИНН","КПП","ВИД ДЕЯТЕЛЬНОСТИ","РЕГИОН"]

{"sheet":"TEHSHEET","index":7,"n_rows":87,"n_cols":11,"rows_kept":87,"cut":false,"hidden":true,"merged":[]}
[]
[]
[]
[null,"Алтайский край",null,null,null,"Январь",null,null,2006]
[null,"Амурская область",null,null,null,"Февраль",null,null,2007,null,"Да"]
[null,"Архангельская область",null,null,null,"Март",null,null,2008,null,"Нет"]
[null,"Астраханская область",null,null,null,"Апрель",null,null,2009]
[null,"Белгородская область",null,null,null,"Май",null,null,2010]
[null,"Брянская область",null,null,null,"Июнь",null,null,2011]
[null,"Владимирская область",null,null,null,"Июль",null,null,2012]
[null,"Волгоградская область",null,null,null,"Август",null,null,2013]
[null,"Вологодская область",null,null,null,"Сентябрь",null,null,2014]
[null,"Воронежская область",null,null,null,"Октябрь",null,null,2015]
[null,"г. Москва",null,null,null,"Ноябрь",null,null,2016]
[null,"г.Байконур",null,null,null,"Декабрь",null,null,2017]
[null,"г.Санкт-Петербург",null,null,null,"Год",null,null,2018]
[null,"Еврейская автономная область",{"$nulls":6},2019]
[null,"Забайкальский край",{"$nulls":6},2020]
[null,"Ивановская область"]
[null,"Иркутская область"]
[null,"Кабардино-Балкарская республика"]
[null,"Калининградская область"]
[null,"Калужская область"]
[null,"Камчатский край"]
[null,"Карачаево-Черкесская республика"]
[null,"Кемеровская область"]
[null,"Кировская область"]
[null,"Костромская область"]
[null,"Краснодарский край"]
[null,"Красноярский край"]
[null,"Курганская область"]
[null,"Курская область"]
[null,"Ленинградская область"]
[null,"Липецкая область"]
[null,"Магаданская область"]
[null,"Московская область"]
[null,"Мурманская область"]
[null,"Ненецкий автономный округ"]
[null,"Нижегородская область"]
[null,"Новгородская область"]
[null,"Новосибирская область"]
[null,"Омская область"]
[null,"Оренбургская область"]
[null,"Орловская область"]
[null,"Пензенская область"]
[null,"Пермский край"]
[null,"Приморский край"]
[null,"Псковская область"]
[null,"Республика Адыгея"]
[null,"Республика Алтай"]
[null,"Республика Башкортостан"]
[null,"Республика Бурятия"]
[null,"Республика Дагестан"]
[null,"Республика Ингушетия"]
[null,"Республика Калмыкия"]
[null,"Республика Карелия"]
[null,"Республика Коми"]
[null,"Республика Марий Эл"]
[null,"Республика Мордовия"]
[null,"Республика Саха (Якутия)"]
[null,"Республика Северная Осетия-Алания"]
[null,"Республика Татарстан"]
[null,"Республика Тыва"]
[null,"Республика Хакасия"]
[null,"Ростовская область"]
[null,"Рязанская область"]
[null,"Самарская область"]
[null,"Саратовская область"]
[null,"Сахалинская область"]
[null,"Свердловская область"]
[null,"Смоленская область"]
[null,"Ставропольский край"]
[null,"Тамбовская область"]
[null,"Тверская область"]
[null,"Томская область"]
[null,"Тульская область"]
[null,"Тюменская область"]
[null,"Удмуртская республика"]
[null,"Ульяновская область"]
[null,"Хабаровский край"]
[null,"Ханты-Мансийский автономный округ"]
[null,"Челябинская область"]
[null,"Чеченская республика"]
[null,"Чувашская республика"]
[null,"Чукотский автономный округ"]
[null,"Ямало-Ненецкий автономный округ"]
[null,"Ярославская область"]